[Event "*** Titled Tuesday Blitz"]
[Site "Chess.com"]
[Date "2021.03.09"]
[Round "3"]
[White "SwitchOnTwitch"]
[Black "pavelalexandru07"]
[Result "1/2-1/2"]
[WhiteElo "2092"]
[BlackElo "2307"]
[TimeControl "180+1"]
[EndTime "10:30:50 PST"]
[Termination "Game drawn - insufficient material"]

1. d4 {[%clk 0:03:00.9]} 1... Nf6 {[%clk 0:03:00]} 2. c4 {[%clk 0:03:01.1]} 2...
c5 {[%clk 0:03:00.1]} 3. d5 {[%clk 0:03:00.8]} 3... e6 {[%clk 0:03:00.6]} 4. Nc3
{[%clk 0:03:01]} 4... exd5 {[%clk 0:03:01.3]} 5. cxd5 {[%clk 0:03:01.9]} 5... d6
{[%clk 0:03:01.9]} 6. Nf3 {[%clk 0:03:02.3]} 6... g6 {[%clk 0:03:02.1]} 7. g3
{[%clk 0:03:02.8]} 7... Bg7 {[%clk 0:03:02.4]} 8. Bg2 {[%clk 0:03:03.4]} 8...
O-O {[%clk 0:03:03]} 9. a4 {[%clk 0:03:03.8]} 9... Re8 {[%clk 0:03:02.4]} 10.
O-O {[%clk 0:03:04]} 10... Ne4 {[%clk 0:03:00.7]} 11. Nxe4 {[%clk 0:02:56.6]}
11... Rxe4 {[%clk 0:03:01.6]} 12. Nd2 {[%clk 0:02:56.9]} 12... Rb4 {[%clk
0:03:02.1]} 13. Qc2 {[%clk 0:02:52.3]} 13... a5 {[%clk 0:02:47.2]} 14. Nc4
{[%clk 0:02:47.5]} 14... b5 {[%clk 0:02:24.7]} 15. axb5 {[%clk 0:02:39.4]} 15...
Rxb5 {[%clk 0:02:25.6]} 16. Bf4 {[%clk 0:02:36.5]} 16... Bf8 {[%clk 0:02:02.2]}
17. Ra2 {[%clk 0:02:22.9]} 17... Na6 {[%clk 0:01:24.5]} 18. Qd2 {[%clk
0:02:17.8]} 18... Nb4 {[%clk 0:01:22.5]} 19. Ra3 {[%clk 0:02:16.8]} 19... Qc7
{[%clk 0:00:55.7]} 20. Rfa1 {[%clk 0:02:15.7]} 20... Bd7 {[%clk 0:00:25.7]} 21.
h3 {[%clk 0:02:14.6]} 21... Rbb8 {[%clk 0:00:10.9]} 22. Rxa5 {[%clk 0:02:11.5]}
22... Rxa5 {[%clk 0:00:10.6]} 23. Rxa5 {[%clk 0:02:12.4]} 23... Bb5 {[%clk
0:00:09.4]} 24. Rxb5 {[%clk 0:02:00.7]} 24... Rxb5 {[%clk 0:00:09]} 25. e4
{[%clk 0:01:52.1]} 25... Rb8 {[%clk 0:00:06.7]} 26. e5 {[%clk 0:01:50.8]} 26...
Rd8 {[%clk 0:00:03.4]} 27. exd6 {[%clk 0:01:49.7]} 27... Qa7 {[%clk 0:00:02.8]}
28. Kh2 {[%clk 0:01:44.7]} 28... Qb7 {[%clk 0:00:02.8]} 29. Bf3 {[%clk
0:01:36.5]} 29... Na6 {[%clk 0:00:02.8]} 30. Bg5 {[%clk 0:01:33.1]} 30... Rd7
{[%clk 0:00:02.6]} 31. Bg4 {[%clk 0:01:31.3]} 31... f5 {[%clk 0:00:03.1]} 32.
Bf3 {[%clk 0:01:29.9]} 32... Bxd6 {[%clk 0:00:03.7]} 33. Nxd6 {[%clk 0:01:27.7]}
33... Rxd6 {[%clk 0:00:04.1]} 34. Bf4 {[%clk 0:01:27.6]} 34... Qd7 {[%clk
0:00:03.9]} 35. Bxd6 {[%clk 0:01:25.7]} 35... Qxd6 {[%clk 0:00:04.8]} 36. Qd3
{[%clk 0:01:25.9]} 36... Nc7 {[%clk 0:00:05.2]} 37. Qc4 {[%clk 0:01:25.5]} 37...
Kg7 {[%clk 0:00:05]} 38. Bg2 {[%clk 0:01:22.5]} 38... Kg8 {[%clk 0:00:05.4]} 39.
Qa4 {[%clk 0:01:18]} 39... Kf7 {[%clk 0:00:04.6]} 40. Qa7 {[%clk 0:01:14.5]}
40... Ke7 {[%clk 0:00:04.1]} 41. Qb7 {[%clk 0:01:10.4]} 41... Kf6 {[%clk
0:00:02.8]} 42. h4 {[%clk 0:01:07.7]} 42... Ke7 {[%clk 0:00:03]} 43. Bf3 {[%clk
0:01:06.7]} 43... Kf6 {[%clk 0:00:03.4]} 44. Kg2 {[%clk 0:01:06]} 44... Ke7
{[%clk 0:00:03.6]} 45. Kf1 {[%clk 0:00:35]} 45... Kf6 {[%clk 0:00:03.6]} 46. Qc6
{[%clk 0:00:33.3]} 46... Ke7 {[%clk 0:00:02.9]} 47. Qxd6+ {[%clk 0:00:29.7]}
47... Kxd6 {[%clk 0:00:03.8]} 48. Ke2 {[%clk 0:00:30]} 48... Nxd5 {[%clk
0:00:04.3]} 49. Kd3 {[%clk 0:00:27.2]} 49... Nb4+ {[%clk 0:00:04.3]} 50. Kc4
{[%clk 0:00:27.5]} 50... Nc2 {[%clk 0:00:04.4]} 51. Bd1 {[%clk 0:00:18.2]} 51...
Nd4 {[%clk 0:00:04.5]} 52. Ba4 {[%clk 0:00:16.8]} 52... h6 {[%clk 0:00:04.8]}
53. Be8 {[%clk 0:00:16.1]} 53... g5 {[%clk 0:00:05.1]} 54. hxg5 {[%clk
0:00:16.7]} 54... hxg5 {[%clk 0:00:05.4]} 55. Bg6 {[%clk 0:00:15]} 55... f4
{[%clk 0:00:05.4]} 56. gxf4 {[%clk 0:00:15.2]} 56... gxf4 {[%clk 0:00:06.3]} 57.
b4 {[%clk 0:00:14.8]} 57... Ne6 {[%clk 0:00:05.4]} 58. bxc5+ {[%clk 0:00:14]}
58... Nxc5 {[%clk 0:00:06.1]} 59. Bh5 {[%clk 0:00:13.3]} 59... Ne6 {[%clk
0:00:05.7]} 60. Kd3 {[%clk 0:00:12.7]} 60... Ke5 {[%clk 0:00:05.5]} 61. Bg4
{[%clk 0:00:12]} 61... Ng5 {[%clk 0:00:05.5]} 62. Bd1 {[%clk 0:00:11.7]} 62...
Nf7 {[%clk 0:00:05.1]} 63. Bb3 {[%clk 0:00:09.9]} 63... Nd6 {[%clk 0:00:05.4]}
64. f3 {[%clk 0:00:07.7]} 64... Nf5 {[%clk 0:00:05.7]} 65. Ba4 {[%clk 0:00:06]}
65... Nh4 {[%clk 0:00:06]} 66. Bc6 {[%clk 0:00:05.2]} 66... Ng2 {[%clk 0:00:06]}
67. Ba8 {[%clk 0:00:04.8]} 67... Ne3 {[%clk 0:00:06.2]} 68. Bb7 {[%clk
0:00:04.2]} 68... Nf5 {[%clk 0:00:06.4]} 69. Ba8 {[%clk 0:00:04.6]} 69... Nd6
{[%clk 0:00:06.8]} 70. Bc6 {[%clk 0:00:04.3]} 70... Kf5 {[%clk 0:00:07.3]} 71.
Ba8 {[%clk 0:00:04.5]} 71... Kg5 {[%clk 0:00:07.8]} 72. Kd4 {[%clk 0:00:04.8]}
72... Kh4 {[%clk 0:00:08.2]} 73. Ke5 {[%clk 0:00:05.1]} 73... Nc4+ {[%clk
0:00:06.3]} 74. Kxf4 {[%clk 0:00:06]} 74... Nd2 {[%clk 0:00:06.5]} 75. Ke3
{[%clk 0:00:05.3]} 75... Nxf3 {[%clk 0:00:07.4]} 1/2-1/2

[Event "*** Titled Tuesday Blitz"]
[Site "Chess.com"]
[Date "2021.03.09"]
[Round "3"]
[White "ram1zan"]
[Black "serhanberat_ozdemir"]
[Result "1-0"]
[WhiteElo "2829"]
[BlackElo "2574"]
[TimeControl "180+1"]
[EndTime "10:31:15 PST"]
[Termination "ram1zan won by resignation"]

1. e4 {[%clk 0:03:00.9]} 1... c5 {[%clk 0:02:56.8]} 2. Nc3 {[%clk 0:03:01.1]}
2... e6 {[%clk 0:02:57.1]} 3. Nf3 {[%clk 0:02:59.2]} 3... a6 {[%clk 0:02:56.8]}
4. d4 {[%clk 0:02:57.3]} 4... cxd4 {[%clk 0:02:57.7]} 5. Nxd4 {[%clk 0:02:58.2]}
5... b5 {[%clk 0:02:58.3]} 6. Bd3 {[%clk 0:02:57.8]} 6... Qb6 {[%clk 0:02:58.6]}
7. Nb3 {[%clk 0:02:51.7]} 7... Qc7 {[%clk 0:02:56.4]} 8. O-O {[%clk 0:02:51.4]}
8... Bb7 {[%clk 0:02:56.3]} 9. a4 {[%clk 0:02:50.5]} 9... b4 {[%clk 0:02:56.1]}
10. Ne2 {[%clk 0:02:46.2]} 10... Nf6 {[%clk 0:02:55.3]} 11. Bf4 {[%clk
0:02:45.5]} 11... d6 {[%clk 0:02:06.7]} 12. c3 {[%clk 0:02:41]} 12... bxc3
{[%clk 0:02:04.8]} 13. Nxc3 {[%clk 0:02:41.9]} 13... Nc6 {[%clk 0:02:03.1]} 14.
Rc1 {[%clk 0:02:39]} 14... Be7 {[%clk 0:02:03.6]} 15. Nb5 {[%clk 0:02:36.7]}
15... Qd8 {[%clk 0:02:00.1]} 16. Nc3 {[%clk 0:02:24.6]} 16... O-O {[%clk
0:02:00.7]} 17. f3 {[%clk 0:02:18.1]} 17... Rb8 {[%clk 0:01:59.9]} 18. Be3
{[%clk 0:02:18]} 18... d5 {[%clk 0:01:54.5]} 19. exd5 {[%clk 0:02:17.9]} 19...
Nxd5 {[%clk 0:01:50.6]} 20. Nxd5 {[%clk 0:02:18.1]} 20... Qxd5 {[%clk
0:01:51.5]} 21. Be4 {[%clk 0:02:13.6]} 21... Qxd1 {[%clk 0:01:51.5]} 22. Rfxd1
{[%clk 0:02:14.5]} 22... Ne5 {[%clk 0:01:47.2]} 23. Bxb7 {[%clk 0:02:07.4]}
23... Rxb7 {[%clk 0:01:48.1]} 24. Na5 {[%clk 0:02:08.3]} 24... Rb4 {[%clk
0:01:41.8]} 25. b3 {[%clk 0:01:34.8]} 25... h6 {[%clk 0:01:35.2]} 26. Bd4 {[%clk
0:01:27.7]} 26... Ng6 {[%clk 0:01:33.3]} 27. Rc3 {[%clk 0:00:38.3]} 27... Nf4
{[%clk 0:01:13.8]} 28. Kf1 {[%clk 0:00:35.7]} 28... Nd5 {[%clk 0:01:02.9]} 29.
Nc6 {[%clk 0:00:27.9]} 29... Nxc3 {[%clk 0:00:57.6]} 30. Nxe7+ {[%clk
0:00:27.1]} 30... Kh7 {[%clk 0:00:57.1]} 31. Bxc3 {[%clk 0:00:28]} 31... Rxb3
{[%clk 0:00:57.4]} 32. Be5 {[%clk 0:00:27.3]} 32... Ra3 {[%clk 0:00:44.9]} 33.
Rd4 {[%clk 0:00:22.7]} 33... Ra2 {[%clk 0:00:43.3]} 34. h4 {[%clk 0:00:19.5]}
34... Re8 {[%clk 0:00:39.4]} 35. Nc6 {[%clk 0:00:18.6]} 35... f6 {[%clk
0:00:39.6]} 36. Bd6 {[%clk 0:00:11.5]} 36... Rc8 {[%clk 0:00:34.7]} 37. Rc4
{[%clk 0:00:11.9]} 37... Ra1+ {[%clk 0:00:32.6]} 38. Kf2 {[%clk 0:00:11.6]}
38... Ra2+ {[%clk 0:00:33.5]} 39. Kg3 {[%clk 0:00:11.9]} 39... g5 {[%clk
0:00:30]} 40. h5 {[%clk 0:00:11.1]} 40... Rd2 {[%clk 0:00:25.5]} 41. Bb4 {[%clk
0:00:06.2]} 41... Rd7 {[%clk 0:00:23.5]} 42. Bc3 {[%clk 0:00:02.6]} 42... Rdc7
{[%clk 0:00:20.6]} 43. Bxf6 {[%clk 0:00:02.7]} 43... Rxc6 {[%clk 0:00:20.7]} 44.
Rd4 {[%clk 0:00:03.4]} 44... R6c7 {[%clk 0:00:15.1]} 45. Rd6 {[%clk 0:00:03.7]}
45... Re8 {[%clk 0:00:14.6]} 46. Rxa6 {[%clk 0:00:03.7]} 46... Kg8 {[%clk
0:00:10.4]} 47. Be5 {[%clk 0:00:02.7]} 47... Rb7 {[%clk 0:00:07.5]} 48. a5
{[%clk 0:00:02.6]} 48... Kf7 {[%clk 0:00:08.3]} 49. Bc3 {[%clk 0:00:02.9]} 49...
Rc8 {[%clk 0:00:05.7]} 50. Bd4 {[%clk 0:00:02.6]} 50... Rd7 {[%clk 0:00:05.7]}
51. Bf2 {[%clk 0:00:01.9]} 51... Kf6 {[%clk 0:00:06.1]} 52. Rb6 {[%clk
0:00:02.4]} 52... Kf5 {[%clk 0:00:06.4]} 53. a6 {[%clk 0:00:03.1]} 53... Ra8
{[%clk 0:00:06.4]} 54. Rb5+ {[%clk 0:00:03.5]} 54... Rd5 {[%clk 0:00:06.4]} 55.
Rb6 {[%clk 0:00:03]} 55... Ra5 {[%clk 0:00:06.7]} 56. Rb7 {[%clk 0:00:02.5]}
56... R8xa6 {[%clk 0:00:07.2]} 57. Rf7+ {[%clk 0:00:02.9]} 57... Ke5 {[%clk
0:00:07.8]} 58. Rh7 {[%clk 0:00:03.8]} 58... Ra2 {[%clk 0:00:07.9]} 59. Rxh6
{[%clk 0:00:04.2]} 59... Rc6 {[%clk 0:00:08.5]} 60. Rg6 {[%clk 0:00:04]} 60...
Kf5 {[%clk 0:00:09.2]} 61. Be3 {[%clk 0:00:03.7]} 61... Rcc2 {[%clk 0:00:07.9]}
62. Rxg5+ {[%clk 0:00:04.2]} 62... Kf6 {[%clk 0:00:08.6]} 63. Kh3 {[%clk
0:00:04.8]} 63... Re2 {[%clk 0:00:08.8]} 64. Rg6+ {[%clk 0:00:04]} 64... Kf5
{[%clk 0:00:09]} 65. Bh6 {[%clk 0:00:04.6]} 65... Re1 {[%clk 0:00:07.1]} 66. g4+
{[%clk 0:00:04.7]} 66... Ke5 {[%clk 0:00:06.6]} 67. Kh4 {[%clk 0:00:05.6]} 67...
Rf2 {[%clk 0:00:04.2]} 68. f4+ {[%clk 0:00:05.3]} 68... Rxf4 {[%clk 0:00:04.4]}
69. Bxf4+ {[%clk 0:00:05.3]} 69... Kxf4 {[%clk 0:00:05.3]} 70. Rf6+ {[%clk
0:00:05.9]} 70... Ke5 {[%clk 0:00:06]} 71. Rf8 {[%clk 0:00:06.8]} 71... Rh1+
{[%clk 0:00:04.5]} 72. Kg5 {[%clk 0:00:07.4]} 72... Kd6 {[%clk 0:00:04.7]} 73.
h6 {[%clk 0:00:07.7]} 73... Ke7 {[%clk 0:00:05.6]} 74. Rf2 {[%clk 0:00:08.3]}
74... e5 {[%clk 0:00:04.2]} 75. Kg6 {[%clk 0:00:09]} 75... e4 {[%clk 0:00:04.8]}
76. h7 {[%clk 0:00:09.4]} 76... e3 {[%clk 0:00:04.4]} 77. Re2 {[%clk 0:00:08.8]}
77... Rh3 {[%clk 0:00:05.1]} 78. Kg7 {[%clk 0:00:08.3]} 78... Rg3 {[%clk
0:00:04.3]} 79. Rxe3+ {[%clk 0:00:07]} 79... Rxe3 {[%clk 0:00:04.3]} 80. h8=Q
{[%clk 0:00:07.5]} 1-0

[Event "*** Titled Tuesday Blitz"]
[Site "Chess.com"]
[Date "2021.03.09"]
[Round "3"]
[White "FredyMatsuura"]
[Black "ErikRonka"]
[Result "1-0"]
[WhiteElo "2207"]
[BlackElo "2387"]
[TimeControl "180+1"]
[EndTime "10:31:31 PST"]
[Termination "FredyMatsuura won by checkmate"]

1. d4 {[%clk 0:03:00.9]} 1... d5 {[%clk 0:02:59.6]} 2. c4 {[%clk 0:03:00.5]}
2... e6 {[%clk 0:02:59.9]} 3. Nc3 {[%clk 0:03:00.2]} 3... a6 {[%clk 0:03:00.5]}
4. cxd5 {[%clk 0:02:50.3]} 4... exd5 {[%clk 0:03:01.4]} 5. Bf4 {[%clk
0:02:50.2]} 5... Nf6 {[%clk 0:03:00.8]} 6. e3 {[%clk 0:02:49.8]} 6... Bd6 {[%clk
0:03:01.2]} 7. Bg3 {[%clk 0:02:46.3]} 7... O-O {[%clk 0:03:01.2]} 8. Bd3 {[%clk
0:02:45.6]} 8... Nc6 {[%clk 0:02:47.6]} 9. Nge2 {[%clk 0:02:36.8]} 9... Ne7
{[%clk 0:02:46.8]} 10. O-O {[%clk 0:02:34.3]} 10... Bf5 {[%clk 0:02:43.1]} 11.
Rb1 {[%clk 0:02:30.1]} 11... Bxg3 {[%clk 0:02:14.9]} 12. Nxg3 {[%clk 0:02:29]}
12... Bxd3 {[%clk 0:02:15.3]} 13. Qxd3 {[%clk 0:02:29]} 13... a5 {[%clk
0:02:12.9]} 14. Rfc1 {[%clk 0:02:27.8]} 14... c6 {[%clk 0:02:11]} 15. Na4 {[%clk
0:02:22.8]} 15... Nc8 {[%clk 0:02:05.5]} 16. Nc5 {[%clk 0:02:18.9]} 16... Nd6
{[%clk 0:02:02.9]} 17. b3 {[%clk 0:02:12.5]} 17... Re8 {[%clk 0:01:54.7]} 18.
Nf5 {[%clk 0:01:59.5]} 18... Nfe4 {[%clk 0:01:49.1]} 19. Nxd6 {[%clk 0:01:57]}
19... Nxd6 {[%clk 0:01:47.4]} 20. Qc2 {[%clk 0:01:55.5]} 20... Qe7 {[%clk
0:01:43]} 21. Nd3 {[%clk 0:01:52.2]} 21... a4 {[%clk 0:01:30.4]} 22. bxa4 {[%clk
0:01:47.5]} 22... Nc4 {[%clk 0:01:29]} 23. Rb4 {[%clk 0:01:39.4]} 23... Ra7
{[%clk 0:01:08.3]} 24. Qb3 {[%clk 0:01:37.1]} 24... Rea8 {[%clk 0:01:02.7]} 25.
h3 {[%clk 0:01:21.4]} 25... h6 {[%clk 0:01:02.3]} 26. Nb2 {[%clk 0:01:14.7]}
26... Nd6 {[%clk 0:01:00.9]} 27. Rb1 {[%clk 0:01:11.4]} 27... Ne4 {[%clk
0:00:59.7]} 28. Nd3 {[%clk 0:01:10.9]} 28... Nd2 {[%clk 0:00:59]} 29. Qb2 {[%clk
0:01:10.7]} 29... Nxb1 {[%clk 0:00:58.4]} 30. Qxb1 {[%clk 0:01:11.2]} 30... Rxa4
{[%clk 0:00:47.6]} 31. Rxb7 {[%clk 0:01:09.7]} 31... Qd6 {[%clk 0:00:39.1]} 32.
Rb2 {[%clk 0:00:55.9]} 32... Rc4 {[%clk 0:00:34.2]} 33. Ne5 {[%clk 0:00:54.4]}
33... Rca4 {[%clk 0:00:30]} 34. g3 {[%clk 0:00:48.6]} 34... Ra3 {[%clk
0:00:26.9]} 35. Rc2 {[%clk 0:00:43.4]} 35... R8a6 {[%clk 0:00:21.7]} 36. Qb7
{[%clk 0:00:40.7]} 36... Ra7 {[%clk 0:00:14.8]} 37. Qc8+ {[%clk 0:00:38.7]}
37... Qf8 {[%clk 0:00:14.5]} 38. Qxc6 {[%clk 0:00:35.6]} 38... Rxa2 {[%clk
0:00:13]} 39. Rxa2 {[%clk 0:00:35.6]} 39... Rxa2 {[%clk 0:00:13.9]} 40. Qxd5
{[%clk 0:00:36]} 40... Ra7 {[%clk 0:00:13.8]} 41. h4 {[%clk 0:00:34.3]} 41...
Qa8 {[%clk 0:00:12.7]} 42. Qxa8+ {[%clk 0:00:33.1]} 42... Rxa8 {[%clk
0:00:13.6]} 43. Kg2 {[%clk 0:00:33.2]} 43... f6 {[%clk 0:00:13.8]} 44. Ng6
{[%clk 0:00:30.9]} 44... Kf7 {[%clk 0:00:13.8]} 45. Nf4 {[%clk 0:00:30.9]} 45...
g5 {[%clk 0:00:14]} 46. hxg5 {[%clk 0:00:30.8]} 46... hxg5 {[%clk 0:00:14.9]}
47. Nd3 {[%clk 0:00:29]} 47... Ra3 {[%clk 0:00:14.5]} 48. Nc5 {[%clk 0:00:29]}
48... f5 {[%clk 0:00:14]} 49. g4 {[%clk 0:00:28.4]} 49... f4 {[%clk 0:00:12.5]}
50. Kf3 {[%clk 0:00:28.7]} 50... fxe3 {[%clk 0:00:12.1]} 51. fxe3 {[%clk
0:00:27.9]} 51... Kg6 {[%clk 0:00:11.2]} 52. Ne4 {[%clk 0:00:27.9]} 52... Ra5
{[%clk 0:00:09.9]} 53. Nd6 {[%clk 0:00:27.3]} 53... Kf6 {[%clk 0:00:08.8]} 54.
Nf5 {[%clk 0:00:27]} 54... Ra1 {[%clk 0:00:06.2]} 55. Ke4 {[%clk 0:00:24.5]}
55... Rg1 {[%clk 0:00:06.2]} 56. Kf3 {[%clk 0:00:23.2]} 56... Rf1+ {[%clk
0:00:06.1]} 57. Ke2 {[%clk 0:00:23]} 57... Rg1 {[%clk 0:00:06]} 58. Kf3 {[%clk
0:00:22.6]} 58... Rf1+ {[%clk 0:00:06]} 59. Kg2 {[%clk 0:00:22.9]} 59... Re1
{[%clk 0:00:05.5]} 60. Kf2 {[%clk 0:00:22.1]} 60... Ra1 {[%clk 0:00:05]} 61. Ng3
{[%clk 0:00:20.6]} 61... Ra2+ {[%clk 0:00:03.1]} 62. Kf3 {[%clk 0:00:21]} 62...
Ra1 {[%clk 0:00:04]} 63. Ne4+ {[%clk 0:00:20.6]} 63... Kg6 {[%clk 0:00:04.5]}
64. Ng3 {[%clk 0:00:20.5]} 64... Rg1 {[%clk 0:00:04.4]} 65. e4 {[%clk
0:00:20.2]} 65... Rd1 {[%clk 0:00:04]} 66. Nf5 {[%clk 0:00:19.9]} 66... Kf6
{[%clk 0:00:03.4]} 67. e5+ {[%clk 0:00:18.4]} 67... Ke6 {[%clk 0:00:03.6]} 68.
Ke4 {[%clk 0:00:18.5]} 68... Re1+ {[%clk 0:00:03.5]} 69. Ne3 {[%clk 0:00:18.5]}
69... Rg1 {[%clk 0:00:03.4]} 70. d5+ {[%clk 0:00:18.9]} 70... Ke7 {[%clk
0:00:03.7]} 71. Kf5 {[%clk 0:00:19.3]} 71... Re1 {[%clk 0:00:02.5]} 72. d6+
{[%clk 0:00:19.3]} 72... Kd7 {[%clk 0:00:02]} 73. Nd5 {[%clk 0:00:19.1]} 73...
Rf1+ {[%clk 0:00:02.2]} 74. Kxg5 {[%clk 0:00:18.8]} 74... Re1 {[%clk 0:00:02.4]}
75. Kf5 {[%clk 0:00:16.9]} 75... Rf1+ {[%clk 0:00:03.3]} 76. Nf4 {[%clk
0:00:17.4]} 76... Rg1 {[%clk 0:00:02.4]} 77. g5 {[%clk 0:00:17.6]} 77... Ke8
{[%clk 0:00:02.4]} 78. e6 {[%clk 0:00:17.6]} 78... Kf8 {[%clk 0:00:02.6]} 79. d7
{[%clk 0:00:15.4]} 79... Ke7 {[%clk 0:00:03.5]} 80. Ng6+ {[%clk 0:00:15.5]}
80... Kd8 {[%clk 0:00:03]} 81. Ne5 {[%clk 0:00:13.7]} 81... Ra1 {[%clk
0:00:03.9]} 82. g6 {[%clk 0:00:13.3]} 82... Ke7 {[%clk 0:00:04.1]} 83. Nc6+
{[%clk 0:00:12.7]} 83... Kd6 {[%clk 0:00:01.4]} 84. d8=Q+ {[%clk 0:00:12.5]}
84... Kxc6 {[%clk 0:00:02.3]} 85. e7 {[%clk 0:00:12.1]} 85... Rf1+ {[%clk
0:00:01.3]} 86. Kg4 {[%clk 0:00:12.2]} 86... Rg1+ {[%clk 0:00:01.5]} 87. Kf3
{[%clk 0:00:12.5]} 87... Rf1+ {[%clk 0:00:01.6]} 88. Ke2 {[%clk 0:00:12.4]}
88... Rb1 {[%clk 0:00:02.3]} 89. e8=Q+ {[%clk 0:00:12.2]} 89... Kc5 {[%clk
0:00:02.7]} 90. Qe5+ {[%clk 0:00:10]} 90... Kc4 {[%clk 0:00:03]} 91. Qe4+ {[%clk
0:00:10]} 91... Kb3 {[%clk 0:00:03.7]} 92. Qxb1+ {[%clk 0:00:10.3]} 92... Ka3
{[%clk 0:00:04.1]} 93. Qa8# {[%clk 0:00:10.1]} 1-0